[Event "FRA-ch Teams Top 16-A 2022"]
[Site "Chartres"]
[Date "2022.06.09"]
[Round "1.1"]
[White "Ragger, Markus"]
[Black "Jones, Gawain C B"]
[Result "1/2-1/2"]
[ECO "C54"]
[WhiteElo "2636"]
[BlackElo "2669"]
[Annotator "TA"]
[PlyCount "117"]
[EventDate "2022.06.09"]
[EventType "team-tourn"]
[EventCountry "FRA"]
[SourceTitle "playchess.com"]
[Source "ChessBase"]
[SourceQuality "1"]
[TimeControl "40/5400+30:1800+30"]

{[%evp 10,117,10,13,29,12,25,10,10,21,12,8,6,10,13,4,18,14,16,11,3,0,14,19,26,12,25,0,31,0,29,21,44,37,50,0,0,0,34,42,48,53,57,53,55,40,179,177,179,186,172,179,170,179,207,205,205,197,232,160,201,194,254,262,254,259,250,243,258,231,337,283,263,259,259,270,268,252,248,260,268,216,221,227,228,224,254,254,254,254,233,209,268,281,269,138,246,132,102,77,85,87,77,77,84,0,0,0,85,0]} 1. e4 {[%emt 0:00:03]} e5 {[%emt 0:00:10]} 2. Nf3 {[%emt 0:00:03]} Nc6 {[%emt 0:00:09]} 3. Bc4 {[%emt 0:00:02]} Nf6 {[%emt 0:00:22]} 4. d3 {[%emt 0:00:08]} Bc5 {[%emt 0:00:06]} 5. O-O {[%emt 0:00:08]} d6 {[%emt 0:00:07]} 6. c3 {[%emt 0:00:08]} a5 {[%emt 0:00:33] C54: Giuoco Piano: 4 c3 Nf6, main lines with 5 d4 and 5 d3.} 7. Re1 {[%emt 0:02:10]} (7. Bg5 $5 {[%cal Rd3d4]}) 7... Ba7 {[%emt 0:01:10]} 8. Na3 {[%emt 0:02:11]} h6 {[%emt 0:03:46] The position is equal.} 9. Nb5 {[%emt 0:04:02]} Bb6 {[%emt 0:00:45]} 10. Be3 {[%emt 0:01:40]} Bxe3 {[%emt 0:00:12]} 11. Rxe3 {[%emt 0:00:13]} O-O {[%emt 0:00:07]} 12. h3 {[%emt 0:02:46] [#]} Re8 $146 {[%emt 0:11:23]} ({Predecessor:} 12... Bd7 13. a4 Ne7 14. d4 Ng6 15. Qb3 Qb8 16. Rd1 Bc6 17. Bd3 Re8 18. Bb1 Qc8 {½-½ (36) Marbourg,D (2477)-Fabri,L (2392) ICCF email 2021}) 13. Qc2 {[%emt 0:12:26]} Ne7 {[%emt 0:11:15]} 14. Qb3 {[%emt 0:17:34]} Rf8 {[%emt 0:04:23]} 15. d4 {[%emt 0:02:10]} Ng6 {[%emt 0:10:29]} 16. Rd1 {[%emt 0:04:27]} Bd7 {[%emt 0:02:42]} 17. a4 {[%emt 0:05:50]} Qc8 {[%emt 0:03:03]} 18. Nd2 {[%emt 0:13:12]} Nh5 {[%emt 0:07:38]} 19. Nf3 {[%emt 0:07:20]} Nhf4 {[%emt 0:02:14]} 20. Bf1 {[%emt 0:01:36]} Kh8 {[%emt 0:11:06]} 21. Qc4 {[%emt 0:04:38]} Bc6 {[%emt 0:03:15]} 22. Nxc7 {[%emt 0:02:37]} Qxc7 $11 {[%emt 0:03:50]} 23. d5 {[%emt 0:00:01][%cal Bd4d5,Bd5c6][%mdl 32]} f5 {[%emt 0:00:35][%cal Of5e4]} 24. dxc6 {[%emt 0:01:09]} fxe4 $1 {[%emt 0:07:33]} 25. Qxe4 {[%emt 0:01:47]} d5 {[%emt 0:00:40]} 26. Qc2 {[%emt 0:00:59] Hoping for cxb7.} e4 $1 {[%emt 0:01:20]} 27. Nd4 {[%emt 0:02:19] Black must now prevent cxb7.} Rae8 {[%emt 0:06:33]} (27... bxc6 $14 28. g3 c5) 28. c4 $18 {[%emt 0:00:53]} bxc6 {[%emt 0:02:10]} 29. cxd5 {[%emt 0:00:07]} Nxd5 {[%emt 0:00:35]} 30. Rxe4 {[%emt 0:00:50]} Nb4 {[%emt 0:00:14]} 31. Qb1 {[%emt 0:01:07] Threatens to win with Rxe8.} Qf7 {[%emt 0:01:27]} 32. Rxe8 {[%emt 0:02:11]} Qxe8 {[%emt 0:00:06]} 33. Bc4 {[%emt 0:02:05] And now Ne6 would win.} Ne5 {[%emt 0:02:13]} 34. Re1 {[%emt 0:01:19]} Qb8 {[%emt 0:02:18]} 35. Bf1 {[%emt 0:01:12]} Qb6 {[%emt 0:01:15]} (35... Nd5 $142 36. Qe4 Nd7 37. Nxc6 Qxb2) 36. Qe4 {[%emt 0:00:55]} Nd7 {[%emt 0:00:40]} 37. Nf3 {[%emt 0:01:53]} Qc5 {[%emt 0:00:24]} 38. Qg6 {[%emt 0:00:51]} Qf5 {[%emt 0:01:08]} 39. Qd6 {[%emt 0:02:08]} Rf6 {[%emt 0:02:04]} (39... Nb6 $142 40. b3 N6d5) 40. Qd2 {[%emt 0:01:11]} Qd5 {[%emt 0:00:00]} 41. Qc3 {[%emt 0:09:48]} Re6 {[%emt 0:03:09]} 42. Rxe6 {[%emt 0:06:36]} Qxe6 {[%emt 0:00:03]} 43. Bc4 {[%emt 0:03:16]} Qe4 {[%emt 0:01:39]} 44. b3 $1 {[%emt 0:01:54]} Nb6 {[%emt 0:02:17]} 45. Bf7 {[%emt 0:02:25] Strongly threatening Qc5.} Qb1+ {[%emt 0:03:14]} 46. Kh2 $1 {[%emt 0:01:06] White threatens Qe5 and mate.} Qf5 {[%emt 0:00:37]} 47. Be8 {[%emt 0:00:52]} Nd7 {[%emt 0:04:26]} 48. Bxd7 {[%emt 0:04:48]} Qxd7 {[%emt 0:02:12][%mdl 4096] Endgame KQN-KQN} 49. Ne5 {[%emt 0:00:31]} Qf5 {[%emt 0:02:15]} 50. Qg3 {[%emt 0:00:49]} ({And not} 50. Nxc6 Qc8 51. Qf3 Nxc6 $17) 50... c5 {[%emt 0:04:29]} 51. Nc4 {[%emt 0:00:12]} Nc6 {[%emt 0:00:43]} 52. Qg4 {[%emt 0:01:59]} (52. Qf3 $18 Qxf3 53. gxf3) 52... Qf6 {[%emt 0:01:36]} (52... Qf8 $16 {keeps fighting.}) 53. f3 {[%emt 0:01:57]} (53. Qf3 $1 $18 {[%cal Rf3f6]}) 53... Nd4 {[%emt 0:03:33]} 54. Qc8+ {[%emt 0:01:03]} Kh7 {[%emt 0:00:02]} 55. Qxc5 {[%emt 0:00:10]} Qf4+ {[%emt 0:00:27] [#]} 56. Kg1 $1 {[%emt 0:00:17]} Qc1+ {[%emt 0:00:58]} 57. Kh2 {[%emt 0:00:31]} Qf4+ {[%emt 0:00:06]} 58. Kg1 {[%emt 0:00:26]} Qc1+ {[%emt 0:00:14] [#]} 59. Kh2 {[%emt 0:00:53] Weighted Error Value: White=0.14 (very precise) /Black=0.18 (very precise)} (59. Kf2 $1 $16 Qc2+ 60. Kg3 Ne2+ 61. Kh2 Qxb3 62. Qf5+ (62. Nxa5 Qb8+ 63. Kh1 Qb1+ 64. Kh2 Qb8+ 65. Kh1 Qb1+ 66. Kh2 Qb8+ $11) 62... Kh8 63. Qf8+ (63. Nxa5 Qd1 $11) 63... Kh7 64. Qf5+ Kh8 65. Qe4 (65. Nxa5 Qd1 $11)) 1/2-1/2

[Event "FRA-ch Teams Top 16-A 2022"]
[Site "Chartres"]
[Date "2022.06.09"]
[Round "1.2"]
[White "Korobov, Anton"]
[Black "Bacrot, Etienne"]
[Result "1/2-1/2"]
[ECO "A07"]
[WhiteElo "2671"]
[BlackElo "2638"]
[Annotator "TA"]
[PlyCount "101"]
[EventDate "2022.06.09"]
[EventType "team-tourn"]
[EventCountry "FRA"]
[SourceTitle "playchess.com"]
[Source "ChessBase"]
[SourceQuality "1"]
[TimeControl "40/5400+30:1800+30"]

{[%evp 10,101,4,-10,0,0,0,-8,-16,-17,-35,-18,-25,-27,-24,-22,-12,-22,0,-14,0,0,0,-24,-20,-59,-30,-33,-33,-33,-31,-30,-20,-21,0,-25,0,-31,-19,-36,-17,-30,-16,-32,-17,-19,0,0,0,-7,0,-79,-77,-61,0,0,0,0,0,0,0,0,10,0,70,80,81,0,0,0,0,0,0,0,0,0,0,0,0,0,0,0,0,0,0,0,0,0,0,0,0,0,0,0]} 1. Nf3 {[%emt 0:00:03]} d5 {[%emt 0:00:10]} 2. g3 {[%emt 0:00:13]} Nf6 {[%emt 0:00:59]} 3. Bg2 {[%emt 0:00:12]} e6 {[%emt 0:00:09]} 4. O-O {[%emt 0:00:13]} Be7 {[%emt 0:00:04]} 5. d3 {[%emt 0:00:10]} O-O {[%emt 0:01:19]} 6. Nbd2 {[%emt 0:00:06]} a5 {[%emt 0:01:17][%cal Ba7a5,Ba5a4,Ba4a3][%mdl 32] A07: Réti Opening: New York and Capablanca Systems.} 7. e4 {[%emt 0:03:34]} a4 {[%emt 0:01:29]} 8. Re1 {[%emt 0:11:30]} a3 {[%emt 0:07:10] [#]} 9. c4 $146 {[%emt 0:08:53]} ({Predecessor:} 9. b3 c5 10. e5 Nfd7 11. Nf1 Nc6 12. h4 b5 13. h5 f5 14. exf6 Bxf6 15. Rb1 {0-1 (26) Nepomniachtchi,I (2751)-Kramnik,V (2811) Zuerich 2017}) 9... dxe4 {[%emt 0:06:10]} 10. Nxe4 {[%emt 0:02:29]} Nxe4 {[%emt 0:02:19]} 11. Rxe4 {[%emt 0:00:05]} Bf6 {[%emt 0:01:43]} 12. Re2 {[%emt 0:13:48]} Nc6 {[%emt 0:12:45][%cal Bb8c6,Bc6d4,Bd4f3][%mdl 32]} 13. Rb1 {[%emt 0:00:32]} axb2 {[%emt 0:00:21]} 14. Bxb2 {[%emt 0:00:04]} Bxb2 {[%emt 0:00:28]} 15. Rbxb2 {[%emt 0:00:36]} Nd4 {[%emt 0:05:19]} 16. Red2 {[%emt 0:04:08]} c6 {[%emt 0:04:37]} 17. c5 {[%emt 0:11:17]} Nxf3+ {[%emt 0:05:51]} 18. Bxf3 {[%emt 0:04:51]} Qd4 {[%emt 0:00:49]} 19. Rbc2 {[%emt 0:00:13]} Ra4 {[%emt 0:01:26] Against Rc4} 20. Re2 $1 {[%emt 0:02:56]} Ra3 {[%emt 0:02:45]} 21. Red2 {[%emt 0:05:36]} Ra4 {[%emt 0:08:29]} 22. Re2 {[%emt 0:01:35]} Ra3 {[%emt 0:04:57]} 23. Red2 {[%emt 0:03:23]} Qf6 {[%emt 0:03:05]} 24. Be4 {[%emt 0:04:23]} e5 {[%emt 0:03:33]} 25. Qb1 {[%emt 0:05:09]} Rd8 {[%emt 0:05:36]} 26. Rc4 {[%emt 0:01:04] Against Ra4} h5 {[%emt 0:02:55]} 27. Qb2 {[%emt 0:01:50]} Ra8 {[%emt 0:00:37]} 28. a4 {[%emt 0:00:31]} Qe7 {[%emt 0:05:11]} 29. Bf3 {[%emt 0:02:42]} Bf5 {[%emt 0:03:05]} 30. Rb4 {[%emt 0:00:52]} (30. Be4 $11 Be6 31. Rb4 (31. Qxe5 f6 $17)) 30... Qxc5 {[%emt 0:05:38]} 31. Rxb7 {[%emt 0:00:20]} Bg6 {[%emt 0:00:05]} ({Black should try} 31... Rxd3 $15 32. Bxh5 g6 33. Rxd3 Bxd3) 32. Be4 {[%emt 0:02:29]} Bxe4 {[%emt 0:02:11]} 33. dxe4 {[%emt 0:00:02][%cal Ob2b3] [#] Black must now prevent Qb3!} Rxd2 {[%emt 0:01:01]} 34. Qxd2 $11 {[%emt 0:00:02][%mdl 4096] Endgame And now Qa2 would win. KQR-KQR} Qc4 {[%emt 0:00:10] Against Qa2} 35. Rb4 {[%emt 0:02:21]} Qc5 {[%emt 0:00:05]} 36. h4 {[%emt 0:00:49]} Kh7 {[%emt 0:01:49]} (36... g6 $11) 37. Rb7 $1 $14 {[%emt 0:00:58]} Ra7 {[%emt 0:02:29]} (37... Rxa4 $2 38. Qd1 Kg6 39. Qxa4 $18) 38. Rb8 {[%emt 0:02:17] White is more active.} (38. Rxa7 $16 Qxa7 39. Qe2) 38... Qd4 $11 {[%emt 0:00:49] The position is equal.} 39. Qg5 {[%emt 0:02:48][%cal Rg5h5] [#]} Qd1+ {[%emt 0:00:11]} 40. Kg2 {[%emt 0:01:12] Threatening mate with Qf5+.} Qg4 {[%emt 0:00:06]} 41. Qxg4 {[%emt 0:30:49]} hxg4 {[%emt 0:30:06] KR-KR} 42. Rb4 {[%emt 0:00:10]} Kg8 {[%emt 0:00:00]} 43. f3 {[%emt 0:00:00]} gxf3+ {[%emt 0:00:00]} 44. Kxf3 {[%emt 0:00:00]} Kf8 {[%emt 0:00:00]} 45. Kg4 {[%emt 0:00:00]} g6 {[%emt 0:00:00]} 46. Kf3 {[%emt 0:00:00]} Ke7 {[%emt 0:00:00]} 47. g4 {[%emt 0:00:00]} c5 {[%emt 0:00:00]} 48. Rc4 {[%emt 0:00:00]} Kf6 {[%emt 0:00:00]} 49. Ke3 {[%emt 0:00:00]} Ra8 {[%emt 0:00:00]} 50. Kd3 {[%emt 0:00:00]} Ke6 {[%emt 0:00:00]} 51. Rxc5 {[%emt 0:00:00] Weighted Error Value: White=0.10 (very precise) /Black=0.09 (flawless)} 1/2-1/2

[Event "FRA-ch Teams Top 16-A 2022"]
[Site "Chartres"]
[Date "2022.06.09"]
[Round "1.4"]
[White "Grandelius, Nils"]
[Black "Fressinet, Laurent"]
[Result "1/2-1/2"]
[ECO "C54"]
[WhiteElo "2635"]
[BlackElo "2630"]
[Annotator "TA"]
[PlyCount "46"]
[EventDate "2022.06.09"]
[EventType "team-tourn"]
[EventCountry "FRA"]
[SourceTitle "playchess.com"]
[Source "ChessBase"]
[SourceQuality "1"]
[TimeControl "40/5400+30:1800+30"]

{[%evp 10,46,12,9,6,6,24,0,0,8,4,6,14,0,13,4,22,6,11,9,9,9,9,4,8,10,17,0,0,0,9,14,16,16,11,12,7,7,8]} 1. e4 {[%emt 0:00:15]} e5 {[%emt 0:00:04]} 2. Nf3 {[%emt 0:00:14]} Nc6 {[%emt 0:00:04]} 3. Bc4 {[%emt 0:00:49]} Nf6 {[%emt 0:00:18]} 4. d3 {[%emt 0:00:20]} Bc5 {[%emt 0:00:22]} 5. O-O {[%emt 0:00:35]} d6 {[%emt 0:00:16]} 6. c3 {[%emt 0:00:29]} a5 {[%emt 0:00:07] C54: Giuoco Piano: 4 c3 Nf6, main lines with 5 d4 and 5 d3.} 7. Re1 {[%emt 0:01:45]} Ba7 {[%emt 0:00:29]} 8. Na3 {[%emt 0:01:21]} h6 {[%emt 0:02:39] The position is equal.} 9. Nb5 {[%emt 0:01:22]} Bb6 {[%emt 0:00:05]} 10. Be3 {[%emt 0:00:13]} Bxe3 {[%emt 0:00:26]} 11. Rxe3 {[%emt 0:00:08]} O-O {[%emt 0:00:21]} 12. d4 {[%emt 0:00:55] [#]} Re8 $146 {[%emt 0:03:46]} ({Predecessor:} 12... Bg4 13. h3 Bxf3 14. Qxf3 a4 15. Rd1 Qe7 16. Na3 Na5 17. Bb5 Nc6 18. Nc2 Ra5 {1-0 (37) Volokitin,A (2681)-Matlakov,M (2674) Chess.com INT 2022}) 13. Qe1 {[%emt 0:16:31]} (13. Qb3 $5 {[%cal Rc4f7]} Re7 14. a4 $14) 13... Bg4 {[%emt 0:08:06]} 14. dxe5 {[%emt 0:12:06]} Nxe5 {[%emt 0:09:53]} 15. Nxe5 {[%emt 0:00:08]} dxe5 {[%emt 0:00:57]} 16. f3 {[%emt 0:07:03]} Bd7 {[%emt 0:11:43]} 17. Rd1 {[%emt 0:01:42]} Rc8 {[%emt 0:05:08]} 18. Red3 {[%emt 0:16:43]} Qe7 {[%emt 0:02:38] [#] Hoping for ...Qc5+.} 19. Qe3 {[%emt 0:00:07] Prevents Qc5.} Red8 {[%emt 0:06:25]} 20. Na3 {[%emt 0:02:56]} Be8 {[%emt 0:04:06]} 21. Rxd8 {[%emt 0:12:51]} Rxd8 {[%emt 0:00:21]} 22. Rxd8 {[%emt 0:00:04]} Qxd8 {[%emt 0:00:07]} 23. Be2 {[%emt 0:01:11]} b6 {[%emt 0:05:52] A balanced but interesting game.  Weighted Error Value: White=0.04 (flawless) /Black=0.05 (flawless)} 1/2-1/2

[Event "FRA-ch Teams Top 16-A 2022"]
[Site "Chartres"]
[Date "2022.06.09"]
[Round "1.5"]
[White "Naiditsch, Arkadij"]
[Black "Velten, Paul"]
[Result "1/2-1/2"]
[ECO "A15"]
[WhiteElo "2654"]
[BlackElo "2492"]
[Annotator "TA"]
[PlyCount "62"]
[EventDate "2022.06.09"]
[EventType "team-tourn"]
[EventCountry "FRA"]
[SourceTitle "playchess.com"]
[Source "ChessBase"]
[SourceQuality "1"]
[TimeControl "40/5400+30:1800+30"]

{[%evp 9,62,-26,-32,-43,-33,-39,-58,-93,-5,-5,-12,-31,0,-8,5,0,0,-11,-5,-10,0,-35,-17,-48,0,-16,-18,-7,0,-18,-8,-45,-30,-44,-47,-43,-34,-80,-49,-95,-81,-93,-41,-41,-41,-32,-40,-48,0,-47,0,-47,0,-42,0]} 1. c4 {[%emt 0:00:04]} c6 {[%emt 0:03:06]} 2. Nf3 {[%emt 0:01:28]} Nf6 {[%emt 0:01:45]} 3. b3 {[%emt 0:00:46]} g6 {[%emt 0:02:10]} 4. Bb2 {[%emt 0:04:16]} Bg7 {[%emt 0:01:33]} 5. e4 {[%emt 0:01:11]} O-O {[%emt 0:01:05]} 6. Qc2 {[%emt 0:19:17] [#] A15: English Opening: 1...Nf6.} d5 $146 {[%emt 0:01:18]} ({Predecessor:} 6... d6 7. d4 d5 8. e5 Bf5 9. Bd3 Bxd3 10. Qxd3 dxc4 11. bxc4 Nfd7 12. Qe2 e6 {1-0 (47) Hadzi Manev,L (2205)-Temkov,B (2039) Skopje 2008}) 7. e5 {[%emt 0:05:04]} Bf5 {[%emt 0:03:58]} 8. Bd3 {[%emt 0:08:55]} Bxd3 {[%emt 0:07:54]} ({Black should try} 8... Ne4 $17) 9. Qxd3 $11 {[%emt 0:00:10]} Nfd7 {[%emt 0:05:54]} 10. O-O {[%emt 0:00:21]} dxc4 {[%emt 0:01:12]} (10... e6 $5 {[%cal Rc6c5]}) 11. Qxc4 {[%emt 0:07:06]} Na6 {[%emt 0:04:10]} 12. d4 {[%emt 0:07:45]} Nb6 {[%emt 0:02:32]} 13. Qe2 {[%emt 0:00:12]} Nd5 {[%emt 0:00:38]} 14. Nbd2 {[%emt 0:00:09]} Nac7 {[%emt 0:00:27]} (14... Qd7 {with more complications.} 15. Nc4 Nf4 16. Qd2 Bh6) 15. g3 {[%emt 0:03:53]} Qd7 {[%emt 0:00:52]} 16. Rfe1 {[%emt 0:00:38]} Ne6 {[%emt 0:04:07]} (16... Qg4 $15 {should be considered.}) 17. h4 {[%emt 0:04:51]} Rad8 {[%emt 0:09:27]} 18. Rad1 {[%emt 0:04:30]} Qc8 {[%emt 0:02:35]} 19. a4 {[%emt 0:04:40]} Bh6 {[%emt 0:03:40]} 20. Qe4 {[%emt 0:08:55]} Ng7 {[%emt 0:04:03]} 21. Nh2 {[%emt 0:02:32]} Bxd2 {[%emt 0:02:57]} 22. Rxd2 {[%emt 0:00:06]} f5 {[%emt 0:00:08]} 23. Qf3 {[%emt 0:03:40]} (23. Qg2 $15) 23... Ne6 {[%emt 0:08:30]} 24. Rdd1 {[%emt 0:01:48]} (24. Qg2 $15 {deserves consideration.}) 24... Rd7 {[%emt 0:01:29]} 25. Qg2 {[%emt 0:00:11]} Qd8 {[%emt 0:00:37]} ({Black should play} 25... c5 $17 26. dxc5 Qxc5) 26. Nf3 $15 {[%emt 0:02:50]} Qb6 {[%emt 0:00:45]} 27. Rd3 {[%emt 0:00:19]} Nb4 {[%emt 0:01:27] Pair of Knights!} 28. Rd2 {[%emt 0:00:16]} Nd5 {[%emt 0:00:14]} 29. Rd3 {[%emt 0:00:16]} Nb4 {[%emt 0:13:07]} 30. Rd2 {[%emt 0:00:35]} Nd5 {[%emt 0:10:03]} 31. Rd3 {[%emt 0:00:06]} Nb4 {[%emt 0:00:21] Weighted Error Value: White=0.16 (very precise) /Black=0.20 (precise)} 1/2-1/2

[Event "FRA-ch Teams Top 16-A 2022"]
[Site "Chartres"]
[Date "2022.06.09"]
[Round "1.6"]
[White "Edouard, Romain"]
[Black "Bellahcene, Bilel"]
[Result "0-1"]
[ECO "B30"]
[WhiteElo "2575"]
[BlackElo "2521"]
[Annotator "TA"]
[PlyCount "70"]
[EventDate "2022.06.09"]
[EventType "team-tourn"]
[EventCountry "FRA"]
[SourceTitle "playchess.com"]
[Source "ChessBase"]
[SourceQuality "1"]
[TimeControl "40/5400+30:1800+30"]

{[%evp 11,70,29,31,32,47,28,28,14,23,18,18,14,28,22,20,27,25,33,42,52,36,10,6,23,56,57,43,38,49,0,0,-82,-83,-117,-73,-126,-62,-60,0,0,45,-173,-174,-243,-252,-225,0,0,0,0,0,-541,-591,-568,-584,-705,-755,-741,-743,-29995,-29996]} 1. e4 {[%emt 0:00:06]} c5 {[%emt 0:00:42]} 2. Nf3 {[%emt 0:00:05]} Nc6 {[%emt 0:00:57]} 3. Bb5 {[%emt 0:00:42]} e6 {[%emt 0:00:14]} 4. O-O {[%emt 0:00:11]} Nge7 {[%emt 0:00:23][%cal Bg8e7,Be7g6,Bg6f4,Bf4e6][%mdl 32]} 5. d4 {[%emt 0:00:12]} cxd4 {[%emt 0:00:47]} 6. Nxd4 {[%emt 0:00:03]} Qb6 {[%emt 0:02:31] 6...Ng6 might become the main line.} 7. Nxc6 {[%emt 0:00:57] B30: Sicilian: 2...Nc6 3 Bb5, lines without ...g6.} bxc6 {[%emt 0:00:05]} 8. Bd3 {[%emt 0:00:11]} Ng6 {[%emt 0:08:08]} 9. Kh1 {[%emt 0:01:42] White has an edge.} e5 {[%emt 0:07:43]} 10. Nc3 {[%emt 0:04:40]} Be7 {[%emt 0:00:50] [#]} 11. Na4 $146 {[%emt 0:00:07]} ({Predecessor:} 11. Ne2 O-O 12. f4 exf4 13. Nxf4 Ne5 14. Qe1 d6 15. Qg3 Qd8 16. Be2 Bh4 17. Qc3 {½-½ (41) Benkiar,D (2027)-Amdouni,Z (2249) Algiers 2013}) 11... Qc7 {[%emt 0:04:29]} 12. c4 {[%emt 0:00:06]} Nf4 {[%emt 0:00:20]} 13. c5 {[%emt 0:16:09]} O-O {[%emt 0:12:56]} 14. Bc4 {[%emt 0:01:06]} Rb8 {[%emt 0:20:51]} 15. Be3 {[%emt 0:04:24]} Rd8 {[%emt 0:01:35]} 16. g3 {[%emt 0:07:36]} Ne6 {[%emt 0:01:12]} 17. f4 {[%emt 0:15:02]} d5 {[%emt 0:26:06]} 18. cxd6 $1 {[%emt 0:01:24]} (18. exd5 $2 cxd5 19. Be2 (19. Bxd5 $2 Rxd5 20. Qe2 Bb7 $19) 19... d4 $19) 18... Bxd6 {[%emt 0:01:02][%cal Re5f4]} 19. f5 {[%emt 0:04:18]} Nd4 {[%emt 0:01:32]} 20. f6 {[%emt 0:05:08]} (20. Bxd4 exd4 21. b3 (21. Qxd4 Qa5 $15) 21... Bb7 $11) (20. Bg5 $14) 20... g6 $11 {[%emt 0:02:30]} 21. Bxd4 {[%emt 0:00:56]} (21. Rf2 $11) 21... exd4 $17 {[%emt 0:00:07]} 22. Qd2 {[%emt 0:00:04]} Bf8 {[%emt 0:01:47][%cal Od4d3]} 23. Rae1 {[%emt 0:11:52] [#]} (23. b3 $142) 23... Qe5 {[%emt 0:01:36]} ({Black should play} 23... Rb5 $1 $17 {[%mdl 512]} 24. b3 (24. Bxb5 $2 cxb5 25. Nc3 dxc3 $19) 24... Rh5) 24. b3 $15 {[%emt 0:00:06]} d3 {[%emt 0:03:08]} (24... Bh3 $15 25. Rf2 Qh5) 25. Nb2 $11 {[%emt 0:00:53]} Bh3 {[%emt 0:00:44]} 26. Rf2 {[%emt 0:01:20]} (26. Nxd3 $14 {is the one way to stay ahead.} Rxd3 27. Qxd3 (27. Bxd3 Bxf1 28. Rxf1 Rd8 $11)) 26... Qh5 $1 $36 {[%emt 0:00:25][%mdl 2048] ...Bb4 is the strong threat. White is under strong pressure.} (26... Bb4 $2 27. Qh6 $1 Bf8 28. Bxf7+ (28. Nxd3 Qxe4+ 29. Rxe4 Bxh6 $18) 28... Kh8 29. Qxh3 $18) 27. Qf4 {[%emt 0:01:55]} (27. Nxd3 {might work better.} Bb4 28. Qf4 Bxe1 29. Nxe1) 27... d2 $1 {[%emt 0:00:40]} 28. Rd1 {[%emt 0:00:04] [#]} (28. Rxd2 $2 Rxd2 29. Nd3 Rd8 $1 $19) 28... Bg4 $2 {[%emt 0:00:31] Really sharp! A strong pair of Bishops.} ({Worse is} 28... g5 29. Qe3 $11) (28... Bh6 $1 $19 {[%cal Rh6f4]} 29. Rfxd2 Bg2+ 30. Kg1 Qxd1+ 31. Rxd1 Bxf4 32. Kxg2 Rxd1 33. Nxd1 Be5) 29. Rdxd2 $11 {[%emt 0:01:26]} Rxd2 {[%emt 0:00:35]} 30. Rxd2 {[%emt 0:00:26]} Re8 {[%emt 0:00:31]} 31. Bxf7+ $2 {[%emt 0:12:59][%mdl 8192]} Kxf7 $19 {[%emt 0:00:09]} 32. Qc7+ {[%emt 0:00:01]} Kxf6 {[%emt 0:00:43] Threatens to win with ...Bf3+.} 33. Nd3 {[%emt 0:02:20]} Bf3+ {[%emt 0:00:16]} 34. Kg1 {[%emt 0:00:02]} Bc5+ {[%emt 0:00:35]} 35. Kf1 {[%emt 0:00:01]} Qh3+ {[%emt 0:00:10] Weighted Error Value: White=0.60/Black=0.19 (very precise)} 0-1

[Event "FRA-ch Teams Top 16-A 2022"]
[Site "Chartres"]
[Date "2022.06.09"]
[Round "1.7"]
[White "Maze, Sebastien"]
[Black "David, Alberto"]
[Result "1/2-1/2"]
[ECO "B47"]
[WhiteElo "2519"]
[BlackElo "2520"]
[Annotator "TA"]
[PlyCount "83"]
[EventDate "2022.06.09"]
[EventType "team-tourn"]
[EventCountry "FRA"]
[SourceTitle "playchess.com"]
[Source "ChessBase"]
[SourceQuality "1"]
[TimeControl "40/5400+30:1800+30"]

{[%evp 17,83,24,35,12,30,29,37,39,62,0,18,10,6,0,4,14,5,13,0,22,50,0,0,0,0,0,0,0,0,-12,0,-16,-7,-7,0,-12,0,-9,2,-27,-12,-28,-19,-24,-8,-23,0,0,0,0,0,0,0,0,0,0,0,0,0,0,0,0,0,0,0,0,0,0]} 1. e4 {[%emt 0:00:03]} c5 {[%emt 0:00:12]} 2. Nf3 {[%emt 0:00:32]} e6 {[%emt 0:00:06]} 3. d4 {[%emt 0:00:33]} cxd4 {[%emt 0:00:06]} 4. Nxd4 {[%emt 0:00:03]} Nc6 {[%emt 0:00:06]} 5. Nc3 {[%emt 0:00:09]} Qc7 {[%emt 0:00:36]} 6. f4 {[%emt 0:01:54]} a6 {[%emt 0:00:36]} 7. Nxc6 {[%emt 0:00:07]} Qxc6 {[%emt 0:05:08]} 8. Be2 {[%emt 0:01:15]} b5 {[%emt 0:04:29]} 9. Bf3 {[%emt 0:01:30]} Bb7 {[%emt 0:03:42]} 10. Qd3 {[%emt 0:00:25] was the old line (10.Be3). B47: Sicilian: Taimanov: 5 Nc3 Qc7 6 f4, 6 g3 and 6 Be2.} Qc7 {[%emt 0:11:00]} 11. Be3 {[%emt 0:05:50]} Bb4 {[%emt 0:13:32]} 12. Bd4 {[%emt 0:24:06] [#] White is slightly better.} f6 $146 {[%emt 0:19:45]} ({Predecessor:} 12... Nf6 13. O-O Rc8 14. e5 Bxc3 15. Bxc3 Nd5 16. Bxd5 Bxd5 17. Rf2 Qc4 18. Qd2 O-O {½-½ (49) Lelumees,B (2126)-Hahn,F (2110) Floersheim 2016}) 13. g3 {[%emt 0:02:48]} (13. a3 $14 Be7 14. Qe3) 13... Nh6 {[%emt 0:03:36][%cal Bg8h6,Bh6f7,Bf7d6,Bd6c4,Bc4d2][%mdl 32]} 14. O-O-O {[%emt 0:07:20]} O-O {[%emt 0:00:26]} 15. Ne2 {[%emt 0:03:44]} Rac8 {[%emt 0:03:09]} 16. Kb1 {[%emt 0:03:41]} Nf7 {[%emt 0:05:13]} 17. a3 {[%emt 0:13:34]} Be7 {[%emt 0:01:22]} 18. Bc3 {[%emt 0:00:11]} Rfd8 {[%emt 0:00:16]} 19. Qd2 {[%emt 0:12:56]} (19. h4 $14) 19... Nd6 $11 {[%emt 0:01:36]} 20. Ba5 {[%emt 0:00:14]} Nc4 {[%emt 0:00:10]} 21. Bxc7 {[%emt 0:00:03]} Nxd2+ {[%emt 0:00:04]} 22. Rxd2 {[%emt 0:00:04]} Rxc7 {[%emt 0:00:04]} 23. Nd4 {[%emt 0:00:20] Against f5} Kf7 {[%emt 0:01:12]} 24. c3 {[%emt 0:02:51]} Bc5 {[%emt 0:13:14]} 25. Re1 {[%emt 0:04:27]} Ke7 {[%emt 0:01:29]} 26. Bd1 {[%emt 0:01:03]} Rdc8 {[%emt 0:08:05]} 27. Bb3 {[%emt 0:00:40]} Ba8 {[%emt 0:00:35]} 28. e5 {[%emt 0:03:12]} f5 {[%emt 0:01:25]} 29. Bc2 {[%emt 0:01:43]} g6 {[%emt 0:00:21]} 30. h4 {[%emt 0:00:09]} Bd5 {[%emt 0:01:54]} 31. Red1 {[%emt 0:01:01]} Bxd4 {[%emt 0:00:30]} 32. Rxd4 {[%emt 0:00:38] The position is equal.} Rc4 {[%emt 0:00:29]} 33. Kc1 {[%emt 0:01:25]} Rxd4 {[%emt 0:00:10]} 34. Rxd4 {[%emt 0:00:17][%mdl 4096] Endgame KRB-KRB} d6 {[%emt 0:00:31]} 35. exd6+ {[%emt 0:05:00]} Kxd6 {[%emt 0:00:02]} 36. a4 {[%emt 0:00:25]} Rc4 {[%emt 0:00:57]} 37. axb5 {[%emt 0:01:30]} Rxd4 {[%emt 0:01:31]} 38. cxd4 {[%emt 0:00:04]} axb5 {[%emt 0:00:02]} 39. Kd2 {[%emt 0:00:44]} b4 {[%emt 0:00:04]} 40. Ba4 {[%emt 0:00:40]} Bc4 {[%emt 0:00:24]} 41. Ke3 {[%emt 0:31:23]} Kd5 {[%emt 0:31:29]} 42. Bd1 {[%emt 0:00:00] Weighted Error Value: White=0.09 (flawless) /Black=0.06 (flawless)} 1/2-1/2